fUST/lending_fUST_20250809
["ID","MTS","AMOUNT","RATE_DAILY","PERIOD"]
[378119607,1754739049222,-460.0,0.00023287,2]
[378119610,1754739049231,-460.0,0.00023287,2]
[378119612,1754739049241,-544.24,0.00023287,2]
[378119613,1754739049252,-579.56,0.00023287,2]
[378119615,1754739049261,-460.0,0.00023287,2]
[378119618,1754739049270,-1338.03,0.00023287,2]
[378119619,1754739049280,-460.0,0.00023287,2]
[378119621,1754739049289,-469.23,0.00023287,2]
[378119623,1754739049298,-1085.85,0.00023287,2]
[378119626,1754739049308,-460.0,0.00023287,2]
[378119628,1754739049317,-460.0,0.00023287,2]
[378119630,1754739049327,-1077.97,0.00023287,2]
[378119632,1754739049336,-620.22,0.00023287,2]
[378119634,1754739049345,-544.87,0.00023287,2]
[378119636,1754739049355,-460.0,0.00023287,2]
[378119638,1754739049364,-460.0,0.00023287,2]
[378119640,1754739049373,-460.0,0.00023287,2]
[378119642,1754739049383,-826.56,0.00023287,2]
[378119644,1754739049392,-704.11,0.00023287,2]
[378119646,1754739049401,-487.57,0.00023287,2]
[378119647,1754739049411,-1098.86,0.00023287,2]
[378119649,1754739049421,-500.0,0.00023288,2]
[378119652,1754739049431,-560.42652259,0.00023309,2]
[378119654,1754739049441,-160.0,0.00023333,2]
[378119656,1754739049451,-2150.0,0.00023395,2]
[378119658,1754739049461,-636.0,0.00023395,2]
[378119659,1754739049470,-971.0,0.00023395,2]
[378119661,1754739049479,-408.0,0.00023395,2]
[378119663,1754739049489,-415.728,0.00023395,2]
[378119665,1754739049498,-708.136517,0.00023409,7]
[378119667,1754739049508,-708.136517,0.00023409,7]
[378119669,1754739049518,-151.0,0.00023409,7]
[378119671,1754739049527,-151.0,0.00023409,7]
[378119673,1754739049537,-461.55179734,0.00023409,7]
[378119675,1754739049546,-6111.21177686,0.00023409,2]
[378119677,1754739049555,-151.0,0.00023489,7]
[378119680,1754739049565,-201.0,0.00023539,2]
[378119681,1754739049574,-420.0,0.00023539,2]
[378119684,1754739049584,-151.0,0.00023561,7]
[378119686,1754739049594,-151.0,0.00023561,7]
[378119688,1754739049604,-460.0,0.00023561,2]
[378119689,1754739049614,-708.136517,0.00023561,7]
[378119692,1754739049624,-708.136517,0.00023561,7]
[378119694,1754739049634,-460.0,0.00023561,2]
[378119695,1754739049644,-609.92,0.00023561,2]
[378119697,1754739049653,-505.21,0.00023561,2]
[378119699,1754739049662,-151.0,0.00023561,7]
[378119701,1754739049672,-151.0,0.00023561,7]
[378119704,1754739049681,-460.0,0.00023561,2]
[378119705,1754739049690,-460.0,0.00023561,2]
[378119708,1754739049700,-460.0,0.00023561,2]
[378119709,1754739049709,-460.0,0.00023561,2]
[378119712,1754739049719,-460.0,0.00023561,2]
[378119714,1754739049729,-541.27,0.00023561,2]
[378119716,1754739049740,-460.0,0.00023561,2]
[378119717,1754739049749,-460.0,0.00023561,2]
[378119719,1754739049758,-554.05,0.00023561,2]
[378119721,1754739049767,-460.0,0.00023561,2]
[378119723,1754739049776,-460.0,0.00023561,2]
[378119725,1754739049786,-640.32,0.00023561,2]
[378119728,1754739049795,-717.14,0.00023561,2]
[378119729,1754739049804,-916.75,0.00023561,2]
[378119731,1754739049813,-1805.7,0.00023561,2]
[378119733,1754739049823,-836.82,0.00023561,2]
[378119735,1754739049832,-896.16,0.00023561,2]
[378119737,1754739049841,-460.0,0.00023561,2]
[378119739,1754739049850,-467.22,0.00023561,2]
[378119741,1754739049860,-460.0,0.00023561,2]
[378119743,1754739049869,-460.0,0.00023561,2]
[378119745,1754739049878,-514.06,0.00023561,2]
[378119747,1754739049888,-460.0,0.00023561,2]
[378119749,1754739049897,-460.0,0.00023561,2]
[378119751,1754739049906,-1889.5,0.00023561,2]
[378119753,1754739049916,-1116.58,0.00023561,2]
[378119755,1754739049925,-3473.41,0.00023561,2]
[378119757,1754739049934,-1801.64,0.00023561,2]
[378119759,1754739049947,-2147.46,0.00023561,2]
[378119761,1754739049956,-460.0,0.00023561,2]
[378119763,1754739049965,-460.0,0.00023561,2]
[378119765,1754739049974,-460.0,0.00023561,2]
[378119767,1754739049985,-460.0,0.00023561,2]
[378119769,1754739049994,-460.0,0.00023561,2]
[378119771,1754739050004,-881.71,0.00023561,2]
[378119773,1754739050013,-151.0,0.00023561,7]
[378119776,1754739050023,-306.99783229,0.00023561,2]
[378119778,1754739050033,-686.77,0.00023561,2]
[378119780,1754739050042,-460.0,0.00023561,2]
[378119782,1754739050051,-460.0,0.00023561,2]
[378119784,1754739050060,-544.24,0.00023561,2]
[378119785,1754739050068,-579.56,0.00023561,2]
[378119787,1754739050078,-460.0,0.00023561,2]
[378119789,1754739050087,-1338.03,0.00023561,2]
[378119791,1754739050096,-460.0,0.00023561,2]
[378119793,1754739050105,-469.23,0.00023561,2]
[378119795,1754739050115,-1085.85,0.00023561,2]
[378119797,1754739050124,-460.0,0.00023561,2]
[378119800,1754739050134,-460.0,0.00023561,2]
[378119802,1754739050143,-1077.97,0.00023561,2]
[378119804,1754739050152,-620.22,0.00023561,2]
[378119805,1754739050161,-544.87,0.00023561,2]
[378119808,1754739050171,-390.0925337,0.00023561,2]
[378119810,1754739050179,-460.0,0.00023561,2]
[378119811,1754739050189,-460.0,0.00023561,2]
[378119813,1754739050197,-826.56,0.00023561,2]
[378119815,1754739050207,-151.0,0.00023561,7]
[378119817,1754739050216,-704.11,0.00023561,2]
[378119819,1754739050225,-487.57,0.00023561,2]
[378119821,1754739050234,-1098.86,0.00023561,2]
[378119823,1754739050243,-500.0,0.00023572,2]
[378119825,1754739050253,-314.28283868,0.00023572,2]
[378119827,1754739050262,-500.0,0.00023572,2]
[378119829,1754739050271,-500.0,0.00023572,2]
[378119831,1754739050280,-500.0,0.00023572,2]
[378119833,1754739050289,-500.0,0.00023605,2]
[378119835,1754739050298,-268.409021,0.00023616,7]
[378119837,1754739050307,-2000.0,0.00023616,2]
[378119839,1754739050316,-151.0,0.0002362,7]
[378119841,1754739050325,-151.0,0.0002362,7]
[378119843,1754739050334,-151.0,0.0002362,7]
[378119845,1754739050343,-559.03939493,0.0002362,2]
[378119847,1754739050353,-252.4526827,0.0002362,2]
[378119849,1754739050362,-1680.0,0.00023649,2]
[378119851,1754739050371,-1000.0,0.0002376,2]
[378119853,1754739050381,-2000.0,0.00023816,2]
[378119855,1754739050390,-250.0,0.00023834,2]
[378119857,1754739050400,-460.0,0.00023835,2]
[378119859,1754739050409,-460.0,0.00023835,2]
[378119861,1754739050418,-609.92,0.00023835,2]
[378119862,1754739050427,-505.21,0.00023835,2]
[378119863,1754739050436,-460.0,0.00023835,2]
[378119864,1754739050446,-460.0,0.00023835,2]
[378119865,1754739050456,-460.0,0.00023835,2]
[378119866,1754739050466,-460.0,0.00023835,2]
[378119867,1754739050475,-460.0,0.00023835,2]
[378119868,1754739050485,-541.27,0.00023835,2]
[378119869,1754739050494,-460.0,0.00023835,2]
[378119870,1754739050503,-460.0,0.00023835,2]
[378119871,1754739050512,-151.0,0.00023835,7]
[378119872,1754739050521,-554.05,0.00023835,2]
[378119873,1754739050530,-460.0,0.00023835,2]
[378119874,1754739050539,-460.0,0.00023835,2]
[378119875,1754739050548,-640.32,0.00023835,2]
[378119876,1754739050558,-717.14,0.00023835,2]
[378119877,1754739050567,-916.75,0.00023835,2]
[378119878,1754739050577,-1805.7,0.00023835,2]
[378119879,1754739050587,-836.82,0.00023835,2]
[378119880,1754739050596,-896.16,0.00023835,2]
[378119882,1754739050606,-165.92370016,0.00023835,2]
[378119884,1754739050616,-467.22,0.00023835,2]
[378119886,1754739050625,-460.0,0.00023835,2]
[378119888,1754739050634,-460.0,0.00023835,2]
[378119890,1754739050643,-514.06,0.00023835,2]
[378119892,1754739050652,-460.0,0.00023835,2]
[378119894,1754739050661,-460.0,0.00023835,2]
[378119896,1754739050670,-1889.5,0.00023835,2]
[378119898,1754739050679,-1116.58,0.00023835,2]
[378119899,1754739050688,-3473.41,0.00023835,2]
[378119901,1754739050697,-151.0,0.00023835,7]
[378119903,1754739050706,-1801.64,0.00023835,2]
[378119905,1754739050716,-2147.46,0.00023835,2]
[378119922,1754739050859,-460.0,0.00023835,2]
[378119924,1754739050870,-460.0,0.00023835,2]
[378119926,1754739050880,-460.0,0.00023835,2]
[378119928,1754739050890,-460.0,0.00023835,2]
[378119930,1754739050900,-460.0,0.00023835,2]
[378119932,1754739050909,-881.71,0.00023835,2]
[378119934,1754739050918,-686.77,0.00023835,2]
[378119936,1754739050927,-460.0,0.00023835,2]
[378119938,1754739050936,-460.0,0.00023835,2]
[378119940,1754739050950,-544.24,0.00023835,2]
[378119942,1754739050959,-579.56,0.00023835,2]
[378119944,1754739050968,-323.50083975,0.00023835,2]
[378119946,1754739050978,-1338.03,0.00023835,2]
[378119948,1754739050987,-460.0,0.00023835,2]
[378119950,1754739050997,-469.23,0.00023835,2]
[378119952,1754739051006,-1085.85,0.00023835,2]
[378119954,1754739051016,-460.0,0.00023835,2]
[378119956,1754739051026,-460.0,0.00023835,2]
[378119958,1754739051035,-1077.97,0.00023835,2]
[378119959,1754739051043,-620.22,0.00023835,2]
[378119961,1754739051053,-544.87,0.00023835,2]
[378119964,1754739051063,-460.0,0.00023835,2]
[378119966,1754739051072,-460.0,0.00023835,2]
[378119968,1754739051082,-826.56,0.00023835,2]
[378119970,1754739051091,-704.11,0.00023835,2]
[378119971,1754739051100,-487.57,0.00023835,2]
[378119973,1754739051110,-1098.86,0.00023835,2]
[378119975,1754739051119,-260.0,0.00023881,2]
[378119977,1754739051129,-151.0,0.00023889,7]
[378119979,1754739051138,-151.0,0.00023889,7]
[378119981,1754739051147,-708.136517,0.000239,7]
[378119983,1754739051156,-708.136517,0.000239,7]
[378119985,1754739051166,-151.0,0.000239,7]
[378119987,1754739051174,-151.0,0.000239,7]
[378119989,1754739051184,-198.91726074,0.00023992,3]
[378119991,1754739051193,-231.92402426,0.00024,7]
[378119993,1754739051202,-312.16666667,0.00024,7]
[378119995,1754739051212,-216.61183532,0.00024,7]
[378119997,1754739051222,-160.0,0.00024,7]
[378119999,1754739051231,-151.0,0.000241,10]
[378120001,1754739051241,-460.0,0.00024109,2]
[378120003,1754739051250,-460.0,0.00024109,2]
[378120005,1754739051259,-609.92,0.00024109,2]
[378120007,1754739051268,-505.21,0.00024109,2]
[378120009,1754739051278,-460.0,0.00024109,2]
[378120011,1754739051287,-495.60373532,0.00024109,2]
[378120013,1754739051297,-460.0,0.00024109,2]
[378120015,1754739051306,-460.0,0.00024109,2]
[378120017,1754739051315,-460.0,0.00024109,2]
[378120019,1754739051325,-541.27,0.00024109,2]
[378120021,1754739051334,-460.0,0.00024109,2]
[378120023,1754739051343,-460.0,0.00024109,2]
[378120026,1754739051353,-554.05,0.00024109,2]
[378120027,1754739051362,-460.0,0.00024109,2]
[378120030,1754739051372,-640.32,0.00024109,2]
[378120032,1754739051381,-717.14,0.00024109,2]
[378120034,1754739051390,-916.75,0.00024109,2]
[378120036,1754739051399,-1805.7,0.00024109,2]
[378120038,1754739051408,-836.82,0.00024109,2]
[378120040,1754739051417,-896.16,0.00024109,2]
[378120042,1754739051426,-467.22,0.00024109,2]
[378120044,1754739051435,-460.0,0.00024109,2]
[378120045,1754739051444,-460.0,0.00024109,2]
[378120047,1754739051454,-514.06,0.00024109,2]
[378120049,1754739051464,-460.0,0.00024109,2]
[378120052,1754739051473,-460.0,0.00024109,2]
[378120054,1754739051483,-1889.5,0.00024109,2]
[378120056,1754739051493,-1116.58,0.00024109,2]
[378120058,1754739051502,-3473.41,0.00024109,2]
[378120060,1754739051511,-1801.64,0.00024109,2]
[378120062,1754739051520,-2147.46,0.00024109,2]
[378120064,1754739051529,-460.0,0.00024109,2]
[378120066,1754739051538,-460.0,0.00024109,2]
[378120068,1754739051547,-460.0,0.00024109,2]
[378120070,1754739051557,-371.79203086,0.00024109,2]
[378120072,1754739051566,-460.0,0.00024109,2]
[378120073,1754739051575,-881.71,0.00024109,2]
[378120075,1754739051584,-686.77,0.00024109,2]
[378120077,1754739051594,-460.0,0.00024109,2]
[378120079,1754739051603,-460.0,0.00024109,2]
[378120081,1754739051612,-544.24,0.00024109,2]
[378120083,1754739051624,-579.56,0.00024109,2]
[378120086,1754739051633,-1338.03,0.00024109,2]
[378120088,1754739051643,-460.0,0.00024109,2]
[378120089,1754739051657,-469.23,0.00024109,2]
[378120091,1754739051669,-1085.85,0.00024109,2]
[378120093,1754739051678,-460.0,0.00024109,2]
[378120095,1754739051687,-460.0,0.00024109,2]
[378120097,1754739051696,-1077.97,0.00024109,2]
[378120099,1754739051706,-620.22,0.00024109,2]
[378120101,1754739051716,-544.87,0.00024109,2]
[378120103,1754739051725,-460.0,0.00024109,2]
[378120105,1754739051734,-460.0,0.00024109,2]
[378120107,1754739051744,-826.56,0.00024109,2]
[378120109,1754739051753,-704.11,0.00024109,2]
[378120111,1754739051762,-487.57,0.00024109,2]
[378120113,1754739051774,-1098.86,0.00024109,2]
[378120115,1754739051784,-441.17714521,0.0002412,2]
[378120136,1754739051982,-813.42,0.00021917,2]
[378120138,1754739051992,-460.0,0.00022191,2]
[378120140,1754739052001,-813.42,0.00022191,2]
[378120142,1754739052011,-813.42,0.00022465,2]
[378120144,1754739052020,-813.42,0.00022739,2]
[378120145,1754739052029,-813.42,0.00023013,2]
[378120147,1754739052039,-813.42,0.00023287,2]
[378120149,1754739052048,-558.82285479,0.0002412,2]
[378120152,1754739052058,-1000.0,0.0002412,2]
[378120153,1754739052068,-501.22332869,0.0002412,2]
[378120156,1754739052078,-691.51568422,0.00024164,2]
[378120158,1754739052087,-156.289683,0.00024265,3]
[378120160,1754739052097,-151.0,0.00024288,7]
[378120162,1754739052107,-151.0,0.00024288,7]
[378120163,1754739052116,-1500.0,0.00024308,2]
[378120165,1754739052126,-892.46337419,0.00024364,2]
[378120168,1754739052136,-350.0,0.00024382,2]
[378120170,1754739052145,-460.0,0.00024383,2]
[378120171,1754739052155,-708.136517,0.00024383,7]
[378120174,1754739052164,-708.136517,0.00024383,7]
[378120175,1754739052174,-460.0,0.00024383,2]
[378120178,1754739052183,-609.92,0.00024383,2]
[378120179,1754739052193,-505.21,0.00024383,2]
[378120181,1754739052202,-151.0,0.00024383,7]
[378120183,1754739052211,-151.0,0.00024383,7]
[378120186,1754739052222,-460.0,0.00024383,2]
[378120187,1754739052232,-460.0,0.00024383,2]
[378120190,1754739052241,-460.0,0.00024383,2]
[378120191,1754739052250,-460.0,0.00024383,2]
[378120193,1754739052260,-541.27,0.00024383,2]
[378120195,1754739052269,-581.89000028,0.00024383,2]
[378120197,1754739052279,-460.0,0.00024383,2]
[378120199,1754739052288,-554.05,0.00024383,2]
[378120201,1754739052298,-460.0,0.00024383,2]
[378120203,1754739052307,-640.32,0.00024383,2]
[378120205,1754739052317,-717.14,0.00024383,2]
[378120207,1754739052326,-916.75,0.00024383,2]
[378120209,1754739052335,-1805.7,0.00024383,2]
[378120211,1754739052345,-896.16,0.00024383,2]
[378120214,1754739052355,-836.82,0.00024383,2]
[378120216,1754739052364,-467.22,0.00024383,2]
[378120218,1754739052374,-460.0,0.00024383,2]
[378120219,1754739052383,-460.0,0.00024383,2]
[378120221,1754739052392,-514.06,0.00024383,2]
[378120223,1754739052401,-460.0,0.00024383,2]
[378120225,1754739052411,-460.0,0.00024383,2]
[378120227,1754739052420,-1889.5,0.00024383,2]
[378120229,1754739052429,-1116.58,0.00024383,2]
[378120231,1754739052438,-3473.41,0.00024383,2]
[378120233,1754739052447,-1801.64,0.00024383,2]
[378120235,1754739052457,-2147.46,0.00024383,2]
[378120237,1754739052466,-460.0,0.00024383,2]
[378120239,1754739052475,-460.0,0.00024383,2]
[378120241,1754739052484,-460.0,0.00024383,2]
[378120243,1754739052494,-460.0,0.00024383,2]
[378120245,1754739052504,-881.71,0.00024383,2]
[378120247,1754739052514,-686.77,0.00024383,2]
[378120249,1754739052523,-328.06164745,0.00024383,2]
[378120251,1754739052532,-460.0,0.00024383,2]
[378120253,1754739052541,-544.24,0.00024383,2]
[378120255,1754739052550,-579.56,0.00024383,2]
[378120257,1754739052559,-1338.03,0.00024383,2]
[378120259,1754739052568,-460.0,0.00024383,2]
[378120261,1754739052577,-469.23,0.00024383,2]
[378120263,1754739052586,-1085.85,0.00024383,2]
[378120265,1754739052596,-460.0,0.00024383,2]
[378120267,1754739052606,-460.0,0.00024383,2]
[378120269,1754739052615,-1077.97,0.00024383,2]
[378120271,1754739052624,-620.22,0.00024383,2]
[378120273,1754739052633,-544.87,0.00024383,2]
[378120275,1754739052644,-460.0,0.00024383,2]
[378120277,1754739052653,-460.0,0.00024383,2]
[378120279,1754739052662,-826.56,0.00024383,2]
[378120281,1754739052672,-704.11,0.00024383,2]
[378120283,1754739052681,-487.57,0.00024383,2]
[378120285,1754739052691,-1098.86,0.00024383,2]
[378120287,1754739052700,-151.0,0.000244,10]
[378120289,1754739052709,-817.54,0.00024412,2]
[378120291,1754739052718,-360.0,0.00024429,2]
[378120293,1754739052727,-702.59286732,0.00024451,2]
[378120294,1754739052736,-200.0,0.0002449,2]
[378120297,1754739052746,-156.289683,0.00024514,5]
[378120298,1754739052755,-1213.91999905,0.00024638,2]
[378120300,1754739052765,-18298.55362839,0.0002465,2]
[378120303,1754739052775,-151.0,0.0002465,7]
[378120304,1754739052784,-151.0,0.0002465,7]
[378120307,1754739052793,-151.0,0.0002465,7]
[378120308,1754739052802,-151.0,0.0002465,7]
[378120310,1754739052811,-151.0,0.0002465,7]
[378120312,1754739052820,-151.0,0.0002465,7]
[378120314,1754739052831,-151.0,0.0002465,7]
[378120316,1754739052840,-151.0,0.0002465,7]
[378120318,1754739052850,-151.0,0.0002465,7]
[378120320,1754739052860,-511.55602571,0.0002465,2]
[378120322,1754739052876,-1759.0,0.0002465,3]
[378120324,1754739052890,-1759.0,0.0002465,3]
[378120326,1754739052899,-1759.0,0.0002465,3]
[378120328,1754739052909,-152.0,0.0002465,3]
[378120330,1754739052919,-151.0,0.0002465,7]
[378120332,1754739052928,-151.0,0.0002465,7]
[378120334,1754739052940,-1759.0,0.0002465,3]
[378120336,1754739052950,-1759.0,0.0002465,3]
[378120338,1754739052959,-1837.51077045,0.0002465,3]
[378120340,1754739052968,-1759.0,0.0002465,3]
[378120342,1754739052978,-1759.0,0.0002465,3]
[378120344,1754739052988,-325.0,0.0002465,3]
[378120346,1754739052997,-1759.0,0.0002465,3]
[378120348,1754739053006,-325.0,0.0002465,3]
[378120350,1754739053016,-325.0,0.0002465,3]
[378120352,1754739053025,-1759.0,0.0002465,3]
[378120354,1754739053034,-325.0,0.0002465,3]
[378120356,1754739053043,-1759.0,0.0002465,3]
[378120358,1754739053052,-325.0,0.0002465,3]
[378120360,1754739053060,-1759.0,0.0002465,3]
[378120362,1754739053069,-325.0,0.0002465,3]
[378120364,1754739053079,-1759.0,0.0002465,3]
[378120366,1754739053088,-1759.0,0.0002465,3]
[378120367,1754739053103,-325.02396012,0.0002465,3]
[378120369,1754739053112,-325.0,0.0002465,3]
[378120371,1754739053122,-325.0,0.0002465,3]
[378120373,1754739053131,-325.0,0.0002465,3]
[378120375,1754739053140,-325.0,0.0002465,3]
[378120377,1754739053151,-325.0,0.0002465,3]
[378120380,1754739053161,-325.0,0.0002465,3]
[378120381,1754739053170,-152.285124,0.00024655,7]
[378120383,1754739053179,-151.0,0.00024655,7]
[378120385,1754739053189,-462.217459,0.00024657,7]
[378120387,1754739053198,-462.217459,0.00024657,7]
[378120389,1754739053207,-151.0,0.00024657,7]
[378120391,1754739053216,-151.0,0.00024657,7]
[378120393,1754739053226,-151.0,0.00024657,7]
[378120395,1754739053235,-151.0,0.00024657,7]
[378120396,1754739053245,-151.0,0.00024657,7]
[378120397,1754739053255,-151.0,0.00024657,7]
[378120398,1754739053264,-151.0,0.00024657,7]
[378120399,1754739053273,-160.0,0.00024657,7]
[378120400,1754739053283,-460.0,0.00024657,2]
[378120401,1754739053292,-708.136517,0.00024657,7]
[378120402,1754739053301,-708.136517,0.00024657,7]
[378120403,1754739053311,-460.0,0.00024657,2]
[378120404,1754739053320,-609.92,0.00024657,2]
[378120405,1754739053329,-151.0,0.00024657,7]
[378120406,1754739053339,-505.21,0.00024657,2]
[378120407,1754739053348,-151.0,0.00024657,7]
[378120408,1754739053359,-254.283907,0.00024657,7]
[378120409,1754739053368,-460.0,0.00024657,2]
[378120410,1754739053378,-154.083072,0.00024657,7]
[378120411,1754739053387,-460.0,0.00024657,2]
[378120412,1754739053396,-460.0,0.00024657,2]
[378120413,1754739053406,-151.0,0.00024657,7]
[378120415,1754739053415,-151.0,0.00024657,7]
[378120417,1754739053424,-460.0,0.00024657,2]
[378120419,1754739053434,-209.174821,0.00024657,7]
[378120421,1754739053443,-209.174821,0.00024657,7]
[378120423,1754739053452,-432.795285,0.00024657,7]
[378120425,1754739053461,-432.795285,0.00024657,7]
[378120427,1754739053471,-151.0,0.00024657,7]
[378120429,1754739053480,-216.660757,0.00024657,7]
[378120431,1754739053490,-216.660757,0.00024657,7]
[378120433,1754739053499,-541.27,0.00024657,2]
[378120435,1754739053508,-460.0,0.00024657,2]
[378120437,1754739053517,-151.0,0.00024657,7]
[378120439,1754739053528,-554.05,0.00024657,2]
[378120441,1754739053537,-460.0,0.00024657,2]
[378120443,1754739053546,-640.32,0.00024657,2]
[378120445,1754739053555,-717.14,0.00024657,2]
[378120447,1754739053565,-916.75,0.00024657,2]
[378120449,1754739053574,-1805.7,0.00024657,2]
[378120451,1754739053583,-896.16,0.00024657,2]
[378120465,1754739053705,-836.82,0.00024657,2]
[378120467,1754739053715,-467.22,0.00024657,2]
[378120469,1754739053724,-460.0,0.00024657,2]
[378120471,1754739053734,-460.0,0.00024657,2]
[378120473,1754739053743,-514.06,0.00024657,2]
[378120475,1754739053753,-460.0,0.00024657,2]
[378120477,1754739053762,-460.0,0.00024657,2]
[378120479,1754739053772,-1889.5,0.00024657,2]
[378120481,1754739053781,-1116.58,0.00024657,2]
[378120483,1754739053790,-3473.41,0.00024657,2]
[378120485,1754739053801,-151.0,0.00024657,7]
[378120487,1754739053810,-1801.64,0.00024657,2]
[378120489,1754739053820,-2147.46,0.00024657,2]
[378120491,1754739053829,-460.0,0.00024657,2]
[378120493,1754739053838,-460.0,0.00024657,2]
[378120495,1754739053847,-460.0,0.00024657,2]
[378120497,1754739053857,-460.0,0.00024657,2]
[378120499,1754739053866,-881.71,0.00024657,2]
[378120501,1754739053875,-686.77,0.00024657,2]
[378120503,1754739053885,-460.0,0.00024657,2]
[378120505,1754739053895,-544.24,0.00024657,2]
[378120507,1754739053904,-579.56,0.00024657,2]
[378120509,1754739053913,-1338.03,0.00024657,2]
[378120510,1754739053922,-460.0,0.00024657,2]
[378120512,1754739053934,-469.23,0.00024657,2]
[378120514,1754739053948,-1085.85,0.00024657,2]
[378120517,1754739053958,-460.0,0.00024657,2]
[378120519,1754739053967,-460.0,0.00024657,2]
[378120521,1754739053977,-1077.97,0.00024657,2]
[378120522,1754739053989,-620.22,0.00024657,2]
[378120524,1754739053999,-544.87,0.00024657,2]
[378120527,1754739054011,-402.68,0.00024657,2]
[378120528,1754739054026,-460.0,0.00024657,2]
[378120531,1754739054036,-826.56,0.00024657,2]
[378120533,1754739054046,-704.11,0.00024657,2]
[378120535,1754739054055,-487.57,0.00024657,2]
[378120537,1754739054064,-1098.86,0.00024657,2]
[378120539,1754739054073,-2642.63,0.00024657,4]
[378120541,1754739054081,-151.0,0.00024658,7]
[378120542,1754739054091,-151.0,0.00024658,7]
[378120545,1754739054101,-151.0,0.00024658,7]
[378120547,1754739054110,-151.0,0.00024658,7]
[378120549,1754739054119,-151.0,0.00024658,7]
[378120551,1754739054128,-151.0,0.00024658,7]
[378120552,1754739054137,-151.0,0.00024658,7]
[378120555,1754739054152,-151.0,0.00024658,7]
[378120557,1754739054163,-151.0,0.00024658,7]
[378120559,1754739054172,-151.0,0.00024658,7]
[378120561,1754739054182,-151.0,0.00024658,7]
[378120563,1754739054192,-151.0,0.00024658,7]
[378120565,1754739054201,-151.0,0.00024658,7]
[378120567,1754739054210,-151.0,0.00024658,7]
[378120569,1754739054219,-280.0,0.00024658,2]
[378120571,1754739054228,-500.0,0.00024658,2]
[378120573,1754739054238,-333.81084891,0.00024658,2]
[378120575,1754739054247,-500.0,0.00024658,2]
[378120576,1754739054256,-151.0,0.00024658,3]
[378120579,1754739054266,-547.0,0.00024658,2]
[378120580,1754739054275,-216.61183532,0.0002466,7]
[378120582,1754739054284,-1500.0,0.00024668,2]
[378120585,1754739054294,-1500.0,0.00024668,2]
[378120587,1754739054303,-553.86947639,0.0002469,10]
[378120589,1754739054312,-151.0,0.0002469,7]
[378120591,1754739054322,-151.0,0.0002469,7]
[378120592,1754739054330,-151.0,0.000247,7]
[378120594,1754739054340,-151.0,0.000247,7]
[378120596,1754739054349,-151.0,0.00024712,7]
[378120598,1754739054358,-248.493098,0.00024712,7]
[378120600,1754739054367,-156.289683,0.00024748,5]
[378120602,1754739054377,-156.289683,0.0002475,3]
[378120604,1754739054386,-10020.32332571,0.00024774,2]
[378120607,1754739054400,-2271.79811411,0.00024774,2]
[378120609,1754739054409,-156.289683,0.00024781,2]